fUSD/lending_fUSD_20251119
["ID","MTS","AMOUNT","RATE_DAILY","PERIOD"]
[394408091,1763537439105,-300.0,0.00041649,2]
[394408093,1763537439114,-300.0,0.00041649,2]
[394408095,1763537439123,-890.25549944,0.00041649,15]
[394408097,1763537439132,-300.0,0.00041652,2]
[394408099,1763537439142,-1235.20025819,0.00041656,15]
[394408101,1763537439151,-300.0,0.00041656,2]
[394408103,1763537439161,-300.0,0.00041658,2]
[394408105,1763537439170,-62281.6874072,0.0004166,120]
[394408107,1763537439180,-890.25549944,0.00041662,15]
[394408109,1763537439189,-300.0,0.00041664,2]
[394408111,1763537439198,-300.0,0.00041671,2]
[394408113,1763537439207,-504.58273414,0.00041673,10]
[394408115,1763537439216,-500.0,0.00041673,10]
[394408117,1763537439225,-890.25549944,0.00041676,15]
[394408119,1763537439235,-1235.20025819,0.0004168,15]
[394408121,1763537439244,-300.0,0.00041684,2]
[394408123,1763537439254,-300.0,0.00041685,2]
[394408125,1763537439263,-890.25549944,0.00041689,15]
[394408127,1763537439272,-300.0,0.00041694,2]
[394408129,1763537439282,-1000.0,0.00041695,14]
[394408131,1763537439291,-55751.8290294,0.00041697,4]
[394408132,1763537439300,-150.0,0.00041699,14]
[394408134,1763537439309,-208.27824441,0.000417,120]
[394408136,1763537439318,-199.74447139,0.000417,120]
[394408138,1763537439327,-52932.81103715,0.000417,7]
[394408139,1763537439336,-188.58154472,0.000417,120]
[394408140,1763537439346,-890.25549944,0.00041702,15]
[394408141,1763537439356,-300.0,0.00041702,2]
[394408142,1763537439365,-150.0,0.00041702,14]
[394408143,1763537439374,-1235.20025819,0.00041704,15]
[394408144,1763537439384,-300.0,0.00041704,2]
[394408145,1763537439393,-300.0,0.00041707,2]
[394408146,1763537439402,-500.0,0.00041707,2]
[394408147,1763537439411,-204423.373108,0.00041708,4]
[394408148,1763537439420,-70946.7236943,0.00041708,4]
[394408149,1763537439429,-150.45,0.00041708,2]
[394408150,1763537439438,-150.45,0.00041708,2]
[394408151,1763537439447,-861.56588516,0.00041708,7]
[394408152,1763537439456,-582.50593735,0.00041709,31]
[394408153,1763537439465,-246.1774091,0.00041709,31]
[394408154,1763537439474,-213.86352019,0.00041709,31]
[394408155,1763537439483,-150.0,0.0004171,14]
[394408156,1763537439492,-300.0,0.00041711,2]
[394408157,1763537439500,-890.25549944,0.00041715,15]
[394408158,1763537439509,-300.0,0.00041715,2]
[394408159,1763537439518,-300.0,0.00041715,2]
[394408160,1763537439527,-300.0,0.00041717,2]
[394408161,1763537439535,-500.0,0.00041717,2]
[394408162,1763537439545,-500.0,0.00041717,2]
[394408163,1763537439554,-500.0,0.00041717,2]
[394408164,1763537439563,-500.0,0.00041717,2]
[394408165,1763537439572,-760000.0,0.00041718,2]
[394408166,1763537439582,-2149.90071801,0.00041718,4]
[394408167,1763537439591,-300.0,0.00041718,2]
[394408168,1763537439600,-300.0,0.00041719,2]
[394408169,1763537439610,-300.0,0.00041722,2]
[394408170,1763537439619,-300.0,0.00041723,2]
[394408171,1763537439628,-300.0,0.00041724,2]
[394408172,1763537439639,-5814.0,0.00041727,7]
[394408173,1763537439793,-5000.0,0.00041728,120]
[394408174,1763537439804,-10000.0,0.00041728,2]
[394408175,1763537439813,-300.0,0.00041728,2]
[394408176,1763537439823,-1597.92027417,0.00041728,120]
[394408177,1763537439832,-890.25549944,0.00041728,15]
[394408178,1763537439842,-9241.27428721,0.00041728,2]
[394408179,1763537439852,-169.01403616,0.00041728,2]
[394408180,1763537439862,-380.77649458,0.00041728,2]
[394408181,1763537439872,-1235.20025819,0.00041728,15]
[394408182,1763537439881,-300.0,0.00041729,2]
[394408183,1763537439892,-500.0,0.00041729,2]
[394408184,1763537439901,-169.01403613,0.00041733,2]
[394408185,1763537439911,-198.54828745,0.00041735,14]
[394408186,1763537439920,-169.01403613,0.00041737,2]
[394408187,1763537439930,-1597.92027415,0.0004174,120]
[394408188,1763537439940,-9241.27428721,0.0004174,2]
[394408189,1763537439950,-380.77649456,0.0004174,2]
[394408190,1763537439959,-300.0,0.0004174,2]
[394408191,1763537439968,-150.0,0.00041741,14]
[394408192,1763537439978,-169.01403613,0.00041742,2]
[394408193,1763537439987,-300.0,0.00041742,2]
[394408194,1763537439996,-300.0,0.00041742,2]
[394408195,1763537440005,-300.0,0.00041745,2]
[394408196,1763537440014,-300.0,0.00041746,2]
[394408197,1763537440023,-169.01403613,0.00041746,2]
[394408198,1763537440032,-300.0,0.00041748,2]
[394408199,1763537440041,-300.0,0.0004175,2]
[394408200,1763537440051,-200.70215008,0.00041751,4]
[394408201,1763537440060,-1597.92027415,0.00041751,120]
[394408202,1763537440069,-9241.27428721,0.00041751,2]
[394408203,1763537440079,-169.01403613,0.00041751,2]
[394408204,1763537440088,-380.77649456,0.00041751,2]
[394408205,1763537440097,-300.0,0.00041753,2]
[394408206,1763537440106,-300.0,0.00041754,2]
[394408207,1763537440116,-300.0,0.00041757,2]
[394408208,1763537440125,-300.0,0.00041758,2]
[394408209,1763537440134,-300.0,0.00041762,2]
[394408210,1763537440143,-300.0,0.00041764,2]
[394408211,1763537440153,-150.0,0.00041764,14]
[394408213,1763537440163,-150.45,0.00041765,2]
[394408214,1763537440172,-300.0,0.00041767,2]
[394408215,1763537440181,-300.0,0.00041767,2]
[394408216,1763537440191,-300.0,0.0004177,2]
[394408217,1763537440200,-421.53241707,0.00041773,10]
[394408218,1763537440211,-254.3988211,0.00041773,10]
[394408219,1763537440222,-150.0,0.00041773,10]
[394408220,1763537440231,-300.0,0.00041774,2]
[394408221,1763537440241,-300.0,0.00041774,2]
[394408222,1763537440250,-1075.94339602,0.00041775,14]
[394408223,1763537440260,-150.0,0.00041775,14]
[394408224,1763537440269,-300.0,0.00041778,2]
[394408225,1763537440279,-300.0,0.00041781,2]
[394408226,1763537440289,-300.0,0.00041782,2]
[394408227,1763537440298,-150.0,0.00041782,14]
[394408228,1763537440307,-500.0,0.00041785,2]
[394408229,1763537440316,-300.0,0.00041789,2]
[394408230,1763537440326,-300.0,0.00041791,2]
[394408231,1763537440335,-300.0,0.00041793,2]
[394408232,1763537440345,-300.0,0.00041796,2]
[394408233,1763537440355,-1034.26640399,0.000418,30]
[394408234,1763537440364,-150.0,0.000418,60]
[394408235,1763537440373,-150.0,0.000418,47]
[394408236,1763537440383,-996.0,0.000418,30]
[394408237,1763537440392,-309.0,0.000418,30]
[394408238,1763537440401,-206.0,0.000418,30]
[394408239,1763537440413,-790.52223395,0.000418,30]
[394408240,1763537440422,-455.0,0.000418,30]
[394408241,1763537440431,-300.0,0.00041802,2]
[394408242,1763537440440,-300.0,0.00041803,2]
[394408243,1763537440449,-500.0,0.00041807,2]
[394408244,1763537440459,-31229.90966555,0.00041807,30]
[394408245,1763537440468,-300.0,0.00041808,2]
[394408246,1763537440477,-652.0,0.00041808,120]
[394408247,1763537440487,-7711.0,0.00041808,120]
[394408248,1763537440496,-502.99680416,0.00041809,45]
[394408249,1763537440505,-300.0,0.00041811,2]
[394408250,1763537440515,-300.0,0.00041811,2]
[394408251,1763537440524,-300.0,0.00041815,2]
[394408252,1763537440533,-300.0,0.00041816,30]
[394408253,1763537440543,-150.45,0.00041816,2]
[394408254,1763537440552,-500.0,0.00041817,7]
[394408255,1763537440561,-500.0,0.00041817,2]
[394408256,1763537440571,-3186.15,0.00041817,2]
[394408257,1763537440580,-500.0,0.00041817,120]
[394408258,1763537440590,-300.0,0.00041817,2]
[394408259,1763537440599,-150.45,0.00041818,2]
[394408260,1763537440608,-861.56588516,0.00041818,7]
[394408261,1763537440617,-150.45,0.00041818,2]
[394408262,1763537440627,-861.56588516,0.00041818,7]
[394408263,1763537440636,-150.45,0.00041818,2]
[394408264,1763537440645,-150.45,0.00041818,2]
[394408265,1763537440663,-150.45,0.00041818,2]
[394408266,1763537440672,-150.45,0.00041818,2]
[394408267,1763537440681,-150.45,0.00041818,2]
[394408268,1763537440690,-150.45,0.00041818,2]
[394408269,1763537440701,-150.45,0.00041818,2]
[394408270,1763537440710,-150.45,0.00041818,2]
[394408271,1763537440719,-150.45,0.00041818,2]
[394408272,1763537440729,-150.45,0.00041818,2]
[394408273,1763537440738,-150.45,0.00041818,2]
[394408274,1763537440747,-150.45,0.00041818,2]
[394408275,1763537440756,-150.45,0.00041818,2]
[394408276,1763537440765,-150.45,0.00041818,2]
[394408277,1763537440774,-150.45,0.00041818,2]
[394408278,1763537440784,-150.45,0.00041818,2]
[394408279,1763537440793,-150.45,0.00041818,2]
[394408280,1763537440802,-150.45,0.00041818,2]
[394408281,1763537440811,-150.45,0.00041818,2]
[394408282,1763537440820,-150.45,0.00041818,2]
[394408283,1763537440829,-150.45,0.00041818,2]
[394408284,1763537440838,-150.45,0.00041818,2]
[394408285,1763537440848,-150.45,0.00041818,2]
[394408286,1763537440857,-150.45,0.00041818,2]
[394408287,1763537440866,-150.45,0.00041818,2]
[394408288,1763537440876,-150.45,0.00041818,2]
[394408289,1763537440885,-150.45,0.00041818,2]
[394408290,1763537440894,-150.45,0.00041818,2]
[394408291,1763537440903,-150.45,0.00041818,2]
[394408292,1763537440912,-300.0,0.00041818,2]
[394408293,1763537440921,-708.75,0.00041818,30]
[394408294,1763537440930,-150.0,0.00041819,30]
[394408295,1763537440939,-213.234,0.00041819,30]
[394408296,1763537440947,-4003.9181248,0.00041826,2]
[394408297,1763537440956,-94303.6211036,0.00041826,2]
[394408298,1763537440964,-5686.2758276,0.00041826,2]
[394408299,1763537440973,-4848.6998212,0.00041826,2]
[394408300,1763537440982,-81811.9443314,0.00041826,2]
[394408301,1763537440992,-5220.6565275,0.00041826,2]
[394408302,1763537441001,-300.0,0.00041827,30]
[394408303,1763537441009,-300.0,0.00041827,30]
[394408304,1763537441018,-671.84140377,0.00041827,30]
[394408305,1763537441027,-323.61938136,0.00041827,30]
[394408306,1763537441036,-300.0,0.00041827,30]
[394408307,1763537441045,-500.0,0.00041827,7]
[394408308,1763537441054,-500.0,0.00041827,7]
[394408309,1763537441064,-500.0,0.00041827,7]
[394408310,1763537441073,-500.0,0.00041827,7]
[394408311,1763537441082,-500.0,0.00041827,7]
[394408312,1763537441091,-384.95958048,0.00041827,7]
[394408313,1763537441100,-150.0,0.00041827,2]
[394408314,1763537441109,-4194.88336797,0.00041827,2]
[394408315,1763537441118,-500.0,0.00041827,2]
[394408316,1763537441127,-500.0,0.00041827,2]
[394408317,1763537441136,-500.0,0.00041827,2]
[394408318,1763537441145,-500.0,0.00041827,2]
[394408319,1763537441155,-500.0,0.00041827,2]
[394408320,1763537441164,-335.82259186,0.00041827,2]
[394408321,1763537441173,-500.0,0.00041827,30]
[394408322,1763537441182,-37586.00247921,0.00041827,27]
[394408323,1763537441192,-969434.87000512,0.00041828,120]
[394408324,1763537441201,-317114.12109415,0.00041828,120]
[394408325,1763537441215,-874.22355268,0.00041828,120]
[394408326,1763537441261,-705.0,0.00039459,2]
[394408327,1763537441270,-1745.03616794,0.00041728,2]
[394408328,1763537441284,-591.566251,0.00041728,2]
[394408329,1763537441299,-592.82465479,0.00041728,2]
[394408330,1763537441310,-157.99326595,0.00041728,2]
[394408331,1763537441319,-756.15070802,0.00041828,120]
[394408332,1763537441329,-1028.24,0.00041828,120]
[394408337,1763537443455,-300.0,0.0004161,2]
[394408338,1763537443468,-306285.65361908,0.00041828,120]
[394408339,1763537443479,-182984.59027465,0.00041828,120]
[394408340,1763537446514,-300.0,0.00041698,2]
[394408341,1763537446523,-3087.42033968,0.0004174,2]
[394408342,1763537446533,-1031.64203467,0.00041827,60]
[394408343,1763537446543,-1031.64203467,0.00041827,60]
[394408344,1763537446553,-3699.29559098,0.00041828,120]
[394408345,1763537446682,-454.30630883,0.00041828,120]
[394408374,1763538390155,1545.02945915,0.00041854,30]
[394408376,1763538549330,3000.0,0.00041854,120]
[394408614,1763538632297,-203.14,0.0003608,2]
[394408616,1763538632306,-162.0,0.00037644,7]
[394408618,1763538632316,-151.0,0.00037644,7]
[394408619,1763538632325,-162.0,0.00037644,7]
[394408620,1763538632334,-151.0,0.00037644,7]
[394408621,1763538632343,-152.0,0.00037644,7]
[394408622,1763538632353,-162.0,0.00037644,7]
[394408623,1763538632362,-162.0,0.00037644,7]
[394408624,1763538632372,-155.16863387,0.00037644,7]
[394408625,1763538632381,-152.0,0.00037644,7]
[394408626,1763538632390,-207.10715782,0.00037644,7]
[394408627,1763538632399,-156.83575858,0.00037656,7]
[394408628,1763538632407,-152.0,0.00037656,7]
[394408629,1763538632416,-156.0,0.00037656,7]
[394408630,1763538632426,-152.0,0.00037656,7]
[394408631,1763538632435,-152.0,0.00037656,7]
[394408632,1763538632444,-152.0,0.00037656,7]
[394408633,1763538632453,-152.0,0.00037656,7]
[394408634,1763538632463,-152.0,0.00037656,7]
[394408635,1763538632473,-152.0,0.00037656,7]
[394408636,1763538632482,-152.0,0.00037656,7]
[394408637,1763538632491,-152.0,0.00037656,7]
[394408638,1763538632499,-152.0,0.00037656,7]
[394408639,1763538632509,-152.0,0.00037656,7]
[394408640,1763538632518,-152.0,0.00037656,7]
[394408641,1763538632527,-152.0,0.00037656,7]
[394408642,1763538632537,-152.0,0.00037656,7]
[394408643,1763538632548,-152.0,0.00037656,7]
[394408644,1763538632558,-152.0,0.00037656,7]
[394408645,1763538632569,-250.02836132,0.00037656,7]
[394408646,1763538632578,-599.06,0.00038212,2]
[394408647,1763538632587,-161.0,0.000383,30]
[394408649,1763538632596,-177.17793777,0.00038344,2]
[394408651,1763538632611,-145.54206223,0.00038344,2]
[394408653,1763538632620,-133.42142452,0.00038378,30]
[394408656,1763538632639,-33.23857548,0.00038378,30]
[394408658,1763538632648,-500.0,0.000384,5]
[394408660,1763538632657,-501.38602614,0.00038557,5]
[394408662,1763538632665,-421.53241707,0.00038557,5]
[394408664,1763538632676,-500.0,0.00038557,5]
[394408666,1763538632686,-16180.30182012,0.000389,2]
[394408668,1763538632696,-2763.54,0.000389,2]
[394408671,1763538632707,-1315.64532491,0.000389,2]
[394408673,1763538632718,-580.36061433,0.000389,2]
[394408675,1763538632728,-909.89021096,0.000389,2]
[394408677,1763538632740,-339.75260614,0.000389,2]
[394408681,1763538632755,-1473.88137828,0.000389,2]
[394408683,1763538632765,-473.32,0.000389,2]
[394408685,1763538632776,-1317.37814711,0.000389,2]
[394408687,1763538632786,-512.1694451,0.000389,2]
[394408689,1763538632797,-27230.84547366,0.000389,2]
[394408691,1763538632807,-879.7842129,0.000389,2]
[394408694,1763538632818,-789.96956322,0.000389,2]
[394408848,1763538638383,-152.0,0.00037656,7]
[394408849,1763538638392,-19790.25021689,0.000389,2]
[394408850,1763538638433,-1294.22726958,0.000389,2]
[394408851,1763538638443,-1616.09048088,0.000389,2]
[394408852,1763538638534,-682532.59323592,0.000389,2]
[394408853,1763538638544,-999.0,0.00038923,3]
[394408854,1763538638553,-200.0,0.00038983,2]
[394408855,1763538638562,-500.0,0.00038999,15]
[394408856,1763538638572,-500.0,0.00038999,15]
[394408857,1763538638581,-500.0,0.00038999,15]
[394408858,1763538638590,-500.0,0.00038999,15]
[394408859,1763538638599,-500.0,0.00038999,15]
[394408861,1763538638608,-648.12438341,0.00038999,15]
[394408863,1763538638617,-500.0,0.00038999,15]
[394408865,1763538638626,-662.11084471,0.00038999,32]
[394408867,1763538638635,-500.0,0.00038999,2]
[394408869,1763538638644,-275000.0,0.00039,2]
[394408871,1763538638654,-5041.0,0.00039,2]
[394408873,1763538638663,-3845.2134551,0.00039075,2]
[394408876,1763538638673,-2019.90348865,0.00039075,2]
[394408878,1763538638682,-188.2069369,0.00039086,2]
[394408879,1763538638692,-225.4020492,0.00039086,14]
[394408881,1763538638701,-300.0,0.00039104,2]
[394408883,1763538638710,-300.0,0.00039104,2]
[394408886,1763538638720,-362.31410534,0.00039164,15]
[394408888,1763538638729,-363.86352019,0.00039164,15]
[394408889,1763538638738,-500.0,0.00039164,15]
[394408891,1763538638747,-500.0,0.00039164,15]
[394408893,1763538638756,-509.2289611,0.00039164,15]
[394408896,1763538638765,-237352.815985,0.00039165,4]
[394408897,1763538638774,-48464.8800537,0.00039165,4]
[394408900,1763538638784,-502.92812101,0.00039173,5]
[394408902,1763538638794,-171.11283546,0.00039173,5]
[394408904,1763538638803,-500.0,0.00039173,5]
[394408906,1763538638813,-504.4631036,0.00039173,5]
[394408907,1763538638822,-500.0,0.00039173,5]
[394408910,1763538638831,-500.0,0.00039173,5]
[394408911,1763538638840,-504.52146008,0.00039173,5]
[394408913,1763538638849,-504.58273414,0.00039173,5]
[394408915,1763538638859,-504.16500117,0.00039173,5]
[394408917,1763538638868,-224.244,0.00039174,54]
[394408919,1763538638877,-1192.175,0.00039174,54]
[394408921,1763538638887,-500.0,0.00039174,120]
[394408924,1763538638896,-500.0,0.00039174,120]
[394408926,1763538638905,-364.76790472,0.00039174,120]
[394408927,1763538638915,-500.0,0.00039174,7]
[394408929,1763538638925,-500.0,0.00039174,7]
[394408931,1763538638934,-513.27495938,0.00039174,120]
[394408933,1763538638944,-500.0,0.00039174,2]
[394408935,1763538638954,-504.27858024,0.00039174,120]
[394408937,1763538638964,-500.0,0.00039174,2]
[394408939,1763538638974,-500.0,0.00039174,2]
[394408941,1763538638984,-404.25313557,0.00039174,120]
[394408943,1763538638994,-574.84157379,0.00039174,120]
[394408946,1763538639004,-4564.47723048,0.00039174,4]
[394408948,1763538639014,-18257.9089219,0.00039174,4]
[394408950,1763538639024,-93698.7681038,0.00039174,4]
[394408952,1763538639037,-1322.53446547,0.00039174,2]
[394408954,1763538639046,-150.45,0.00039174,2]
[394408956,1763538639055,-150.45,0.00039174,2]
[394408958,1763538639067,-150.45,0.00039174,2]
[394408960,1763538639079,-500.0,0.00039184,120]
[394408962,1763538639089,-500.0,0.00039184,120]
[394408964,1763538639098,-582.2478489,0.00039184,120]
[394408966,1763538639107,-529.77254866,0.00039184,120]
[394408967,1763538639117,-500.0,0.00039184,7]
[394408969,1763538639126,-500.0,0.00039184,7]
[394408971,1763538639136,-500.0,0.00039184,7]
[394408973,1763538639145,-500.0,0.00039184,2]
[394408976,1763538639157,-500.0,0.00039184,2]
[394408977,1763538639167,-500.0,0.00039184,2]
[394408979,1763538639178,-158.86102011,0.00039184,2]
[394408982,1763538639188,-500.0,0.00039184,2]
[394408984,1763538639198,-500.0,0.00039184,2]
[394408986,1763538639207,-500.0,0.00039184,2]
[394408988,1763538639217,-627.09070998,0.00039184,120]
[394408990,1763538639227,-166.66,0.00039186,30]
[394408992,1763538639236,-163.0,0.0003919,120]
[394408994,1763538639245,-300.0,0.00039202,2]
[394408996,1763538639255,-500.0,0.0003926,2]
[394408998,1763538639264,-300.0,0.00039314,2]
[394409000,1763538639274,-3845.21345504,0.0003937,2]
[394409002,1763538639283,-2019.90348861,0.0003937,2]
[394409004,1763538639292,-300.0,0.00039411,2]
[394409006,1763538639301,-300.0,0.00039486,2]
[394409008,1763538639310,-300.0,0.00039502,2]
[394409010,1763538639319,-203.14,0.00039504,2]
[394409012,1763538639328,-285.96,0.00039517,2]
[394409014,1763538639336,-300.0,0.00039545,2]
[394409016,1763538639345,-599.06,0.00039645,2]
[394409018,1763538639355,-300.0,0.00039657,2]
[394409020,1763538639364,-3845.21345504,0.00039665,2]
[394409021,1763538639374,-2019.90348861,0.00039665,2]
[394409023,1763538639383,-300.0,0.00039688,120]
[394409025,1763538639393,-554.34903976,0.00039721,5]
[394409027,1763538639402,-504.62978813,0.00039721,5]
[394409030,1763538639412,-243.90280291,0.00039721,5]
[394409032,1763538639422,-154.90210025,0.00039783,2]
[394409034,1763538639432,-300.0,0.00039785,2]
[394409036,1763538639441,-287.47624325,0.000399,120]
[394409038,1763538639450,-300.0,0.00039944,2]
[394409040,1763538639459,-3845.21345504,0.00039959,15]
[394409042,1763538639469,-2019.90348861,0.00039959,15]
[394409043,1763538639478,-300.0,0.00039971,2]
[394409046,1763538639487,-166.66,0.00039994,30]
[394409047,1763538639496,-1180.11010336,0.0004,120]
[394409049,1763538639506,-1029.34,0.0004,2]
[394409051,1763538639515,-1070.0,0.0004,7]
[394409053,1763538639528,-1249.22168942,0.00040002,34]
[394409056,1763538639537,-300.0,0.00040101,2]
[394409057,1763538639546,-300.0,0.00040107,2]
[394409059,1763538639555,-300.0,0.00040118,2]
[394409062,1763538639564,-500.0,0.00040175,5]
[394409064,1763538639574,-3845.21345504,0.00040254,15]
[394409066,1763538639583,-2019.90348861,0.00040254,15]
[394409068,1763538639600,-300.0,0.00040271,2]
[394409071,1763538639612,-300.0,0.00040367,2]
[394409073,1763538639621,-300.0,0.00040391,2]
[394409075,1763538639630,-150.0,0.000404,5]
[394409077,1763538639639,-254.3988211,0.000404,5]
[394409079,1763538639648,-188.2069369,0.0004042,2]
[394409081,1763538639657,-300.0,0.0004044,2]
[394409083,1763538639666,-1000.0,0.00040468,7]
[394409084,1763538639677,-3845.21345504,0.00040549,15]
[394409087,1763538639687,-2019.90348861,0.00040549,15]
[394409089,1763538639695,-387.35895023,0.00040572,2]
[394409091,1763538639704,-661.0,0.00040573,30]
[394409093,1763538639714,-300.0,0.00040578,2]
[394409095,1763538639723,-1000.0,0.00040591,7]
[394409096,1763538639732,-500.0,0.000406,5]
[394409099,1763538639741,-1448.0,0.00040627,2]
[394409100,1763538639751,-300.0,0.0004065,2]
[394409102,1763538639760,-300.0,0.00040699,2]
[394409105,1763538639770,-5000.0,0.00040707,120]
[394409107,1763538639779,-1448.0,0.0004071,2]
[394409108,1763538639787,-1448.0,0.00040733,7]
[394409111,1763538639796,-300.0,0.0004074,2]
[394409112,1763538639805,-566.88496045,0.0004075,5]
[394409115,1763538639814,-500.0,0.0004075,5]
[394409116,1763538639823,-500.0,0.0004075,5]
[394409118,1763538639832,-531.46991526,0.0004075,5]
[394409120,1763538639841,-1448.0,0.00040773,7]
[394409122,1763538639851,-300.0,0.0004078,2]
[394409125,1763538639860,-166.66,0.00040802,30]
[394409127,1763538639869,-3845.21345504,0.00040844,15]
[394409129,1763538639879,-2019.90348861,0.00040844,15]
[394409131,1763538639889,-285.96,0.00040887,2]
[394409133,1763538639898,-300.0,0.00040889,2]
[394409135,1763538639908,-165.0,0.00040927,120]
[394409137,1763538639917,-355.21852195,0.00040948,5]
[394409139,1763538639928,-153.0,0.00040961,120]
[394409141,1763538639937,-661.0,0.00040991,30]
[394409143,1763538639946,-161.0,0.00041,120]
[394409145,1763538639956,-1836.33253414,0.00041006,36]
[394409147,1763538639965,-416.99,0.00041041,2]
[394409149,1763538639974,-377.01,0.00041041,2]
[394409169,1763538640153,-300.0,0.0004105,2]
[394409171,1763538640163,-599.06,0.00041077,2]
[394409173,1763538640172,-3324.22,0.00041095,2]
[394409175,1763538640188,-300.0,0.00041095,2]
[394409177,1763538640198,-154.88,0.00041096,2]
[394409179,1763538640207,-3845.21345504,0.00041138,15]
[394409181,1763538640217,-2019.90348861,0.00041138,15]
[394409184,1763538640226,-300.0,0.00041143,2]
[394409187,1763538640237,-1000.0,0.0004116,14]
[394409189,1763538640246,-300.0,0.00041199,2]
[394409192,1763538640256,-1856.0,0.000412,7]
[394409194,1763538640265,-150.0,0.00041203,14]
[394409195,1763538640274,-276.0,0.00041205,2]
[394409198,1763538640284,-300.0,0.00041221,2]
[394409200,1763538640293,-150.0,0.00041226,14]
[394409202,1763538640303,-300.0,0.00041257,2]
[394409204,1763538640311,-300.0,0.0004128,2]
[394409206,1763538640324,-300.0,0.0004128,2]
[394409208,1763538640333,-500.0,0.00041297,2]
[394409210,1763538640342,-1000.0,0.00041298,10]
[394409211,1763538640351,-300.0,0.00041317,2]
[394409212,1763538640361,-300.0,0.00041325,2]
[394409213,1763538640370,-300.0,0.00041332,2]
[394409214,1763538640379,-300.0,0.00041354,2]
[394409215,1763538640388,-150.45,0.00041359,2]
[394409216,1763538640397,-3324.22,0.00041369,2]
[394409217,1763538640407,-300.0,0.00041369,2]
[394409218,1763538640416,-300.0,0.00041374,2]
[394409219,1763538640427,-1597.92027417,0.00041379,120]
[394409220,1763538640437,-500.0,0.000414,7]
[394409222,1763538640447,-150.0,0.00041409,14]
[394409224,1763538640457,-500.0,0.00041409,2]
[394409226,1763538640466,-500.0,0.00041409,2]
[394409228,1763538640475,-661.0,0.0004141,30]
[394409230,1763538640484,-150.45,0.0004143,2]
[394409232,1763538640493,-300.0,0.00041432,30]
[394409234,1763538640502,-671.84140377,0.00041432,30]
[394409236,1763538640511,-3845.21345504,0.00041433,15]
[394409238,1763538640521,-2019.90348861,0.00041433,15]
[394409240,1763538640530,-300.0,0.00041439,30]
[394409242,1763538640539,-157719.46513873,0.0004144,2]
[394409244,1763538640549,-150.0,0.00041479,14]
[394409246,1763538640558,-300.0,0.00041482,2]
[394409248,1763538640567,-300.0,0.00041505,2]
[394409250,1763538640576,-162.94332014,0.00041507,7]
[394409252,1763538640588,-150.0,0.00041511,14]
[394409254,1763538640597,-300.0,0.00041542,2]
[394409256,1763538640605,-300.0,0.00041557,2]
[394409258,1763538640614,-214.82886,0.00041558,2]
[394409260,1763538640623,-300.0,0.00041561,2]
[394409262,1763538640633,-300.0,0.00041566,2]
[394409264,1763538640642,-1597.92027415,0.00041567,120]
[394409266,1763538640651,-300.0,0.00041575,2]
[394409268,1763538640660,-302.48585036,0.00041576,107]
[394409270,1763538640669,-300.0,0.0004158,2]
[394409272,1763538640680,-150.0,0.00041583,14]
[394409274,1763538640689,-300.0,0.00041585,2]
[394409276,1763538640698,-300.0,0.0004159,2]
[394409278,1763538640708,-300.0,0.00041591,2]
[394409280,1763538640717,-1000.0,0.000416,2]
[394409282,1763538640726,-2786.86,0.000416,120]
[394409284,1763538640734,-300.0,0.00041608,2]